bitfinex-derivatives/quotes_ETHF0:USTF0_20260102
["timestamp","ask_amount","ask_price","bid_price","bid_amount"]
[1767383917176,0.95481082,3124.1,3123.2,0.00410612]
[1767383917990,0.1601,3124.6,3123.3,0.18270473]
[1767383918493,0.16011,3124.5,3123.3,0.18270473]
[1767383918689,0.16011,3124.4,3123.3,0.18270473]
[1767383920982,0.16012,3124.3,3123.3,0.18270473]
[1767383921282,0.79468082,3123.9,3122.9,0.18270473]
[1767383921483,0.16014,3124.0,3122.9,0.18270473]
[1767383922283,0.16014,3124.0,3122.9,0.18653195]
[1767383922787,0.79468082,3123.8,3122.9,0.00382722]
[1767383922978,0.16015,3123.7,3122.9,0.00382722]
[1767383923389,0.95484082,3123.6,3122.9,0.00382722]
[1767383923592,0.95484082,3123.6,3122.5,0.18270473]
[1767383923794,0.16016,3123.6,3122.6,0.18270473]
[1767383923985,0.16016,3123.6,3122.8,0.18270473]
[1767383924180,0.00479946,3123.5,3123.0,0.18270473]
[1767383924587,0.00479946,3123.5,3123.0,0.18558276]
[1767383925501,0.16013,3124.1,3123.0,0.18558276]
[1767383926386,0.00479946,3123.9,3123.0,0.18558276]
[1767383927199,3.202,3124.7,3123.0,0.18558276]
[1767383927200,0.1601,3124.7,3123.0,0.18558276]
[1767383927790,0.16007,3125.3,3123.1,0.18270473]
[1767383927986,0.16007,3125.2,3123.1,0.18270473]
[1767383928286,0.00479946,3124.3,3123.1,0.18270473]
[1767383928804,0.16007,3125.2,3123.1,0.34288473]
[1767383928999,0.16007,3125.2,3123.3,0.18270473]
[1767383929901,0.00479946,3124.4,3123.3,0.18270473]
[1767383930200,7.475,3125.6,3123.3,0.18270473]
[1767383931099,0.00479946,3124.4,3123.3,0.18270473]
[1767383938607,0.16490946,3124.4,3123.3,0.18270473]
[1767383938799,0.16013,3124.1,3123.0,0.00287803]
[1767383941802,0.00479946,3124.4,3123.0,0.00287803]
[1767383941803,0.16014,3124.0,3123.0,0.00287803]
[1767383942204,0.16014,3123.9,3123.0,0.00287803]
[1767383942503,0.16014,3123.9,3122.9,0.00479946]
[1767383943299,0.16014,3123.9,3122.9,0.00713044]
[1767383943607,0.02989095,3124.4,3122.9,0.00713044]
[1767383943796,1.04782094,3124.3,3122.9,0.00713044]
[1767383943998,0.00479946,3124.4,3122.9,0.00713044]
[1767383943999,1.04782094,3124.2,3122.9,0.00713044]
[1767383944205,1.02593481,3124.1,3122.9,0.00713044]
[1767383944406,0.02188613,3124.2,3122.9,0.00713044]
[1767383944707,0.16015,3123.7,3122.9,0.00713044]
[1767383949210,0.16016,3123.6,3122.9,0.00713044]
[1767383949405,0.79616786,3123.8,3122.1,0.19176846]
[1767383949611,10.68479946,3124.4,3120.5,1.16397659]
[1767383949612,0.16019,3123.0,3121.1,0.19176846]
[1767383950409,0.00479946,3122.4,3121.7,0.19656792]
[1767383950607,0.00750403,3122.4,3121.7,0.19656792]
[1767383953809,0.16019,3123.0,3121.7,0.19656792]
[1767383954211,0.16016,3123.5,3121.7,0.19656792]
[1767383954606,0.16017,3123.3,3121.7,0.19656792]
[1767383954916,0.00479946,3122.8,3121.7,0.19656792]
[1767383966922,0.00373577,3123.3,3121.7,0.19656792]
[1767383967821,0.00479946,3122.8,3121.7,0.19656792]
[1767383968625,0.00373577,3123.3,3121.7,0.19656792]
[1767383968626,0.16390577,3123.3,3121.7,0.19656792]
[1767383969628,0.00319966,3122.8,3121.8,0.1824724]
[1767383969830,0.16390577,3123.3,3121.8,0.1824724]
[1767383972331,0.00373577,3123.3,3121.8,0.1824724]
[1767383972534,6.37298927,3124.6,3121.7,0.00479946]
[1767383972535,0.16014,3124.0,3122.1,0.1824724]
[1767383972834,0.16014,3124.0,3122.3,0.1824724]
[1767383973038,0.16014,3124.0,3122.4,0.1824724]
[1767383973436,0.16251864,3124.0,3122.4,0.1824724]
[1767383974537,0.16251864,3124.0,3122.8,0.1824724]
[1767383975937,0.00237864,3124.0,3122.8,0.1824724]
[1767383976134,0.00237864,3124.0,3122.3,3.36422]
[1767383976135,0.00237864,3124.0,3123.2,0.1824724]
[1767383976336,0.00237864,3124.0,3123.3,0.00479946]
[1767383976536,0.00237864,3124.0,3123.3,0.00893436]
[1767383976943,0.16011,3124.5,3123.3,0.00893436]
[1767383977949,0.16376994,3124.5,3123.3,0.00893436]
[1767383979148,0.16376994,3124.5,3123.3,0.19140676]
[1767383979348,7.63508,3125.1,3123.6,0.1824724]
[1767383979553,0.16008,3125.1,3123.6,0.1824724]
[1767383980351,0.41542031,3125.7,3124.0,0.1824724]
[1767383980548,1.18895988,3125.6,3124.0,0.1824724]
[1767383980846,0.16005,3125.6,3124.0,0.1824724]
[1767383984044,0.16006,3125.5,3124.0,0.1824724]
[1767383988654,0.00368916,3125.7,3124.7,0.79575261]
[1767383988855,0.00368916,3125.7,3124.9,0.00479946]
[1767383990758,0.00368916,3125.7,3124.9,0.18727186]
[1767383994557,0.00368916,3125.7,3124.9,0.98209888]
[1767383995158,0.00368916,3125.7,3124.9,0.18727186]
[1767383995462,0.95967648,3125.6,3124.2,0.79482702]
[1767383995965,0.16006,3125.5,3124.2,0.79482702]
[1767383996167,0.16006,3125.4,3124.1,0.1824724]
[1767383996463,0.16006,3125.4,3124.4,0.00479946]
[1767383996664,0.95491702,3124.9,3123.6,0.1824724]
[1767383996864,0.16009,3124.9,3123.7,0.97729942]
[1767383997064,0.16009,3124.9,3124.1,0.79482702]
[1767383997265,0.79482702,3125.5,3124.1,0.79482702]
[1767383997465,0.16007,3125.4,3124.1,0.79482702]
[1767383997862,0.16007,3125.4,3124.4,0.00479946]
[1767383998159,0.16008,3125.2,3124.4,0.00479946]
[1767384000069,0.16008,3125.2,3124.4,0.79962648]
[1767384000362,0.16008,3125.2,3124.4,0.97524475]
[1767384000568,0.16008,3125.2,3124.4,0.18041773]
[1767384001065,0.00479946,3125.6,3124.7,0.17561827]
[1767384001464,0.16484946,3125.6,3124.4,0.00479946]
[1767384001664,0.16484946,3125.6,3124.5,0.17561827]
[1767384002063,0.00479946,3125.6,3124.7,0.17561827]
[1767384002256,0.00479946,3125.6,3125.0,0.17561827]
[1767384002461,0.00092316,3125.6,3125.0,0.17561827]
[1767384003172,0.00368916,3125.7,3125.2,0.17561827]
[1767384003564,0.16001,3126.5,3125.3,0.97044529]
[1767384003759,1.02348435,3126.4,3125.3,0.97044529]
[1767384003964,0.16001,3126.5,3125.3,0.97044529]
[1767384004168,0.00479946,3126.2,3125.3,0.97044529]
[1767384004567,0.15998,3127.1,3125.9,0.79482702]
[1767384004767,1.02350655,3127.0,3125.9,0.79482702]
[1767384005068,1.02350655,3126.9,3125.7,0.97044529]
[1767384005270,1.02350655,3126.8,3125.7,0.97044529]
[1767384005469,0.15998,3127.1,3125.7,0.97044529]
[1767384005672,1.81825184,3127.0,3126.1,0.00479946]
[1767384005868,1.02342482,3126.9,3126.1,0.00479946]
[1767384006567,0.79482702,3126.4,3124.6,0.17561827]
[1767384006764,0.16003,3126.0,3124.6,0.17561827]
[1767384007068,1.97850179,3125.9,3124.6,0.17561827]
[1767384007270,0.16004,3125.9,3124.7,0.17561827]
[1767384007660,0.79482702,3125.4,3124.7,0.00296035]
[1767384007974,0.16484946,3125.6,3124.7,0.00296035]
[1767384008683,0.16484946,3125.6,3124.8,0.00479946]
[1767384011378,0.16484946,3125.6,3124.8,0.18041773]
[1767384012572,0.16484946,3125.6,3124.8,0.00479946]
[1767384012774,1.18566259,3125.5,3124.8,0.00479946]
[1767384013073,0.16006,3125.5,3124.3,0.17561827]
[1767384013572,1.02569777,3125.4,3124.3,0.17561827]
[1767384013780,0.16006,3125.4,3124.3,0.17561827]
[1767384014074,0.16006,3125.4,3124.5,0.00479946]
[1767384014665,0.16006,3125.4,3124.3,0.00409556]
[1767384014870,1.02580785,3125.3,3124.3,0.00409556]
[1767384015067,1.02580785,3125.2,3124.3,0.00409556]
[1767384015376,1.02580785,3125.1,3124.3,0.00409556]
[1767384015582,0.00479946,3125.6,3124.3,0.00409556]
[1767384015779,1.02578828,3125.5,3124.6,0.00479946]
[1767384016078,1.02578828,3125.4,3124.6,0.00479946]
[1767384016281,1.02578828,3125.3,3124.6,0.00479946]
[1767384016474,1.02578828,3125.2,3124.6,0.00479946]
[1767384016777,0.16484946,3125.6,3124.6,0.00479946]
[1767384016970,1.02564245,3125.5,3124.6,0.00479946]
[1767384017176,0.16007,3125.3,3124.6,0.00479946]
[1767384017671,0.00479946,3125.6,3124.3,0.00409556]
[1767384017672,1.18577616,3125.2,3124.3,0.00409556]
[1767384017874,0.16007,3125.2,3124.3,0.00409556]
[1767384018781,0.16007,3125.2,3124.4,0.00479946]
[1767384019670,0.02566944,3125.6,3123.5,0.17561827]
[1767384019871,1.04162054,3125.5,3123.5,0.17561827]
[1767384020068,0.16009,3124.9,3123.5,0.17561827]
[1767384020873,0.16249735,3124.9,3123.9,0.17881793]
[1767384021380,0.00240735,3124.9,3123.9,0.17881793]
[1767384027681,0.00240735,3124.9,3123.9,0.00319966]
[1767384029286,0.00240735,3124.9,3123.9,0.1692709]
[1767384030183,0.00240735,3124.9,3123.9,0.00319966]
[1767384030486,0.1601,3124.7,3123.9,0.00319966]
[1767384033882,0.00240735,3124.9,3123.9,0.17611558]
[1767384034784,0.00479946,3125.6,3123.9,0.17611558]
[1767384035880,0.00780848,3125.6,3123.9,0.17611558]
[1767384036381,1.18744032,3125.5,3123.9,0.17611558]
[1767384036588,0.16006,3125.5,3123.9,0.17611558]
[1767384037289,1.02768716,3125.4,3123.9,0.17611558]
[1767384037484,0.16006,3125.5,3123.9,0.17611558]
[1767384037682,1.02770376,3125.4,3123.9,0.17611558]
[1767384037879,0.16006,3125.5,3123.9,0.17611558]
[1767384038087,1.02770374,3125.4,3123.9,0.17611558]
[1767384038289,0.16006,3125.5,3123.9,0.17611558]
[1767384038491,1.02786144,3125.4,3123.9,0.17611558]
[1767384038792,0.16006,3125.5,3123.9,0.17611558]
[1767384038978,1.02786156,3125.4,3123.9,0.17611558]
[1767384039183,0.16006,3125.5,3123.9,0.17611558]
[1767384039385,1.02803157,3125.4,3123.9,0.17611558]
[1767384039690,0.16006,3125.5,3123.9,0.17611558]
[1767384039892,1.02803141,3125.4,3123.9,0.00319966]
[1767384040088,1.02803141,3125.3,3123.9,0.00319966]
[1767384040289,1.02803141,3125.2,3123.9,0.00319966]
[1767384040591,1.02803141,3125.1,3123.9,0.00319966]
[1767384040797,1.22434665,3125.6,3123.9,0.00319966]
[1767384040992,1.02824228,3125.5,3123.9,0.00319966]
[1767384041189,0.1601,3124.6,3123.9,0.00319966]
[1767384041390,0.16011,3124.5,3123.5,0.00288857]
[1767384042087,0.01442899,3125.0,3123.5,0.00288857]
[1767384042293,1.04298515,3124.9,3123.5,0.00288857]
[1767384042491,0.16012,3124.3,3123.5,0.00288857]
[1767384042691,0.16013,3124.2,3123.1,0.17291592]
[1767384042887,0.00479946,3124.0,3123.1,0.17291592]
[1767384043703,0.00479946,3124.0,3123.1,0.17664584]
[1767384045990,0.00479946,3124.0,3123.1,0.00372992]
[1767384048100,0.16015,3123.7,3122.7,0.17291592]
[1767384049103,0.00479946,3124.0,3122.7,0.17575782]
[1767384049303,0.16492946,3124.0,3122.7,0.17575782]
[1767384055310,0.16014,3123.9,3122.7,0.17575782]
[1767384055910,0.16015,3123.7,3122.7,0.17575782]
[1767384056706,0.16016,3123.5,3122.7,0.17575782]
[1767384056900,0.02193264,3124.0,3122.7,0.0028419]
[1767384057108,1.02615003,3123.9,3122.7,0.0028419]
[1767384057310,4.31193264,3124.0,3122.7,0.0028419]
[1767384057614,1.02594532,3123.9,3122.7,0.0028419]
[1767384057817,0.16017,3123.3,3122.7,0.0028419]
[1767384058015,0.16017,3123.3,3122.2,0.17291592]
[1767384058920,0.16408397,3123.3,3122.2,0.17701243]
[1767384064925,0.16018,3123.2,3122.2,0.17701243]
[1767384066217,0.00391397,3123.3,3122.2,0.17701243]
[1767384067122,0.16018,3123.1,3122.2,0.00409651]
[1767384067325,0.16019,3122.9,3122.2,0.00409651]
[1767384067526,0.1602,3122.8,3121.8,0.1651594]
[1767384068125,0.00391397,3123.3,3121.8,0.1651594]
[1767384068629,0.00391397,3123.3,3121.8,0.16922809]
[1767384069430,0.00391397,3123.3,3121.9,0.1651594]
[1767384070332,0.00479946,3124.0,3121.8,0.00406869]
[1767384070531,0.16009,3124.9,3122.7,0.1651594]
[1767384070737,0.16009,3124.8,3122.8,0.1651594]
[1767384070933,0.16006,3125.4,3123.1,0.16018]
[1767384071140,0.16006,3125.4,3123.3,0.1651594]
[1767384071334,0.16007,3125.3,3123.3,0.1651594]
[1767384071539,0.00479946,3124.6,3124.0,0.00479946]
[1767384071841,0.00479946,3124.6,3124.0,0.00848476]
[1767384075239,0.16005,3125.7,3124.1,0.1651594]
[1767384075647,3.203,3126.7,3124.1,0.1651594]
[1767384075848,0.16002,3126.2,3124.1,0.1651594]
[1767384076143,0.00479946,3125.5,3124.1,0.1651594]
[1767384076545,0.00817536,3125.5,3124.1,0.1651594]
[1767384084252,0.16004,3125.8,3124.2,0.1651594]
[1767384084456,0.16001,3126.5,3124.4,0.1651594]
[1767384084852,0.16001,3126.5,3124.6,0.1651594]
[1767384085557,0.16236693,3126.5,3124.6,0.1651594]
[1767384086361,0.00479946,3125.9,3124.6,0.1651594]
[1767384086755,0.00479946,3125.9,3124.7,0.1651594]
[1767384087059,0.00479946,3125.9,3124.8,0.1651594]
[1767384088760,0.16483946,3125.9,3124.8,0.1651594]
[1767384088955,0.16483946,3125.9,3124.4,0.16783193]
[1767384089856,0.16005,3125.7,3124.4,0.16783193]
[1767384093560,0.00479946,3125.9,3124.4,0.16783193]
[1767384093959,0.00235693,3126.5,3124.9,0.16640805]
[1767384094161,0.00235693,3126.5,3125.1,0.16640805]
[1767384094863,0.00479946,3126.1,3125.1,0.16640805]
[1767384096660,0.00479946,3126.1,3125.1,4.64440805]
[1767384096863,0.00479946,3126.1,3125.2,0.16640805]
[1767384098161,0.00479946,3126.1,3124.5,0.16640805]
[1767384098363,0.00479946,3126.1,3124.7,0.16640805]
[1767384100262,0.16004,3125.8,3124.3,0.16640805]
[1767384100459,0.16005,3125.7,3124.3,0.16640805]
[1767384104164,0.16005,3125.6,3124.3,0.16640805]
[1767384104864,1.02816658,3125.5,3124.3,0.16640805]
[1767384105164,0.16005,3125.6,3124.3,0.16640805]
[1767384105464,1.02847711,3125.5,3124.3,0.16640805]
[1767384105666,0.16005,3125.6,3124.3,0.16640805]
[1767384108163,0.00479946,3126.1,3124.5,0.16640805]
[1767384108664,0.00479946,3126.1,3124.7,0.32650805]
[1767384108859,0.00235693,3126.5,3124.9,0.16640805]
[1767384109054,0.00235693,3126.5,3125.1,0.16640805]
[1767384109868,0.00319966,3126.1,3125.2,4.64240805]
[1767384110270,0.00319966,3126.1,3125.3,0.16640805]
[1767384111666,0.00319966,3126.1,3125.3,4.64240805]
[1767384111962,0.00319966,3126.1,3124.3,0.16011]
[1767384112169,0.00319966,3126.1,3124.8,0.16640805]
[1767384114974,0.16005,3125.8,3124.4,0.16640805]
[1767384117976,0.16005,3125.7,3124.4,0.16640805]
[1767384119672,0.16322966,3126.1,3124.4,0.16640805]
[1767384121483,0.16004,3125.9,3124.4,0.16640805]
[1767384121680,0.16004,3125.9,3124.4,4.64240805]
[1767384122281,0.16004,3125.9,3124.5,4.477]
[1767384122580,0.16004,3125.9,3124.5,4.478]
[1767384125981,0.16005,3125.7,3124.5,4.478]
[1767384126780,0.16730573,3126.1,3124.0,0.17174833]
[1767384126986,0.16410607,3125.5,3124.0,0.17174833]
[1767384127283,0.16410607,3125.5,3124.0,0.00848476]
[1767384127585,0.16410607,3125.9,3124.0,0.17174833]
[1767384127787,0.16004,3125.8,3124.0,0.17174833]
[1767384128083,0.16005,3125.7,3124.0,0.17174833]
[1767384131882,0.16410607,3126.0,3124.0,0.17174833]
[1767384132077,1.1917764,3125.9,3124.1,4.481]
[1767384132273,1.1917764,3125.9,3124.0,0.17174833]
[1767384132274,0.16007,3125.3,3124.0,0.17174833]
[1767384132482,0.16007,3125.2,3124.0,0.00848476]
[1767384133287,0.16008,3125.1,3124.0,0.00848476]
[1767384136487,0.16005,3125.6,3124.0,0.17174833]
[1767384136793,0.16007,3125.4,3124.0,0.17174833]
[1767384137286,0.16008,3125.1,3124.0,0.00848476]
[1767384138996,0.16410607,3125.3,3124.0,0.00848476]
[1767384139485,0.1601,3124.7,3124.0,0.00848476]
[1767384141386,0.1601,3124.7,3124.0,0.00216664]
[1767384141594,0.1601,3124.6,3123.2,0.16326357]
[1767384142492,0.00479946,3124.2,3123.6,0.00479946]
[1767384142694,0.00842852,3124.2,3123.6,0.00479946]
[1767384146291,0.00842852,3124.2,3123.2,0.00375711]
[1767384147494,0.00842852,3124.2,3123.4,0.00479946]
[1767384148293,0.18495048,3124.2,3123.2,0.00375711]
[1767384148491,0.16014,3123.9,3123.2,0.00375711]
[1767384149298,0.16014,3123.9,3123.2,0.00855657]
[1767384150499,0.00842852,3124.2,3123.2,0.00855657]
[1767384150898,0.00842852,3124.2,3123.2,0.17556659]
[1767384152195,0.00842852,3124.2,3123.2,0.00855657]
[1767384152799,0.16855852,3124.2,3123.2,0.00855657]
[1767384154200,0.16013,3124.1,3123.2,0.00855657]
[1767384156201,0.00842852,3124.2,3123.2,0.17556659]
[1767384157102,0.00842852,3124.2,3122.2,4.36302369]
[1767384157103,0.17754397,3124.2,3121.9,0.16701002]
[1767384157302,0.16017,3123.4,3121.9,0.16701002]
[1767384157709,0.16018,3123.2,3121.9,0.16701002]
[1767384158105,0.16018,3123.1,3122.2,0.00479946]
[1767384159013,0.16019,3123.0,3122.2,0.00479946]
[1767384163520,0.16911545,3123.6,3122.2,0.00479946]
[1767384163721,0.16911545,3124.0,3122.2,0.00479946]
[1767384164017,0.16016,3123.5,3122.2,0.00479946]
[1767384165222,0.16017,3123.4,3122.2,0.00479946]
[1767384166825,0.16017,3123.4,3122.2,0.17180948]
[1767384167218,0.16018,3123.2,3122.2,0.00479946]
[1767384169016,0.16018,3123.1,3122.2,0.00479946]
[1767384173129,0.16019,3123.0,3121.9,0.00390381]
[1767384174324,0.16019,3123.0,3122.1,0.00479946]
[1767384183835,0.16016,3123.6,3122.1,0.16892986]
[1767384185734,0.16953515,3124.2,3122.2,0.1641304]
[1767384185935,0.16015,3123.8,3122.2,0.1641304]
[1767384186134,0.32125663,3123.7,3122.2,0.1641304]
[1767384186337,0.32125663,3123.7,3122.1,0.00479946]
[1767384187340,0.3201,3123.6,3122.1,0.16892986]
[1767384192234,0.3201,3123.6,3122.2,0.1641304]
[1767384192437,0.00842852,3124.2,3122.7,0.1641304]
[1767384192636,0.00842852,3124.2,3122.9,0.1641304]
[1767384195138,0.00842852,3124.2,3123.0,0.1641304]
[1767384195336,0.00842852,3124.2,3123.0,0.3243104]
[1767384195637,0.32117663,3125.3,3123.2,0.1641304]
[1767384195943,0.16008,3125.2,3123.2,0.1641304]
[1767384196142,0.16008,3125.1,3123.2,0.1641304]
[1767384196544,0.00479946,3124.5,3123.8,0.00479946]
[1767384197748,0.00479946,3124.5,3123.8,0.16892986]
[1767384197943,0.16418353,3125.1,3123.8,0.16892986]
[1767384198840,0.00479946,3124.8,3123.8,0.16892986]
[1767384199443,0.16004,3125.8,3124.0,0.1641304]
[1767384200948,0.00479946,3125.2,3124.0,0.1641304]
[1767384201542,0.16391161,3125.8,3123.9,4.471]
[1767384201543,0.16391161,3125.8,3124.2,0.1641304]
[1767384201861,0.16391161,3125.8,3124.2,0.16741162]
[1767384202544,0.00479946,3125.3,3124.2,0.16741162]
[1767384202746,0.00387161,3125.8,3124.4,0.1641304]
[1767384202941,0.00387161,3125.8,3124.4,0.3242404]
[1767384203147,0.00387161,3125.8,3124.6,0.1641304]
[1767384203747,0.00319966,3125.5,3124.6,0.1641304]
[1767384204050,0.00387161,3125.8,3124.6,0.1641304]
[1767384205744,0.15997,3127.2,3124.8,0.1641304]
[1767384205946,0.16110663,3127.5,3125.7,0.16892986]
[1767384206144,3.393,3128.2,3125.7,0.16892986]
[1767384206145,0.16110663,3128.0,3125.7,0.16892986]
[1767384206447,0.32105663,3127.7,3125.7,0.16892986]
[1767384206641,0.32365203,3127.7,3125.7,0.16892986]
[1767384207650,0.0025954,3127.7,3126.4,0.15992388]
[1767384207848,1e-08,3127.7,3126.6,0.15992388]
[1767384208652,1e-08,3127.7,3126.4,4.47264334]
[1767384208850,1e-08,3127.7,3126.5,0.15992388]
[1767384209358,1e-08,3127.7,3126.4,0.16249903]
[1767384212164,1e-08,3127.7,3126.4,0.00364334]
[1767384212763,0.15412252,3127.6,3126.4,0.00364334]
[1767384214463,0.31409252,3127.3,3125.7,0.00479946]
[1767384214777,0.15998,3127.1,3125.7,0.00479946]
[1767384215468,0.15998,3127.1,3125.7,0.00705748]
[1767384217678,0.15998,3127.1,3125.7,0.16591317]
[1767384218272,1e-08,3127.7,3125.7,0.16591317]
[1767384218576,1.17115866,3127.6,3125.7,0.16591317]
[1767384218873,1.01120866,3127.5,3125.7,0.16591317]
[1767384219178,1.01120866,3127.4,3125.7,0.16591317]
[1767384219376,1.01120866,3127.3,3125.7,0.16591317]
[1767384219574,0.15996,3127.5,3125.7,0.16591317]
[1767384219780,1.01176115,3127.4,3125.7,0.16591317]
[1767384219989,1.01176115,3127.3,3125.7,0.16591317]
[1767384220274,1.01247025,3127.2,3125.7,0.16591317]
[1767384220476,0.15996,3127.5,3125.7,0.16591317]
[1767384220678,1.01247085,3127.4,3125.7,0.16591317]
[1767384220871,1.01247085,3127.3,3125.7,0.16591317]
[1767384221174,0.15999,3126.9,3125.7,0.00705748]
[1767384221371,1.01340306,3126.8,3125.7,0.00705748]
[1767384221573,0.15999,3126.9,3125.7,0.00705748]
[1767384221770,1.0134034,3126.8,3125.7,0.00705748]
[1767384221971,0.15999,3126.9,3125.7,0.00705748]
[1767384222174,1.01340458,3126.8,3125.7,0.00705748]
[1767384222477,1.01340458,3126.7,3125.7,0.00705748]
[1767384222775,1.01340458,3126.6,3125.7,0.00705748]
[1767384223075,1.01340458,3126.5,3125.7,0.00705748]
[1767384223281,1.01340458,3126.4,3124.8,0.15885569]
[1767384223579,1.01340458,3126.3,3124.8,0.15885569]
[1767384223781,0.16,3126.6,3124.8,0.15885569]
[1767384223975,1.01535152,3126.5,3124.8,0.15885569]
[1767384224166,0.00479946,3126.0,3125.3,0.00479946]
[1767384226885,1.72708603,3126.9,3125.3,0.16365515]
[1767384227086,1.01757282,3126.8,3125.3,0.16365515]
[1767384227281,1.01757282,3126.7,3125.4,0.15885569]
[1767384227577,1e-08,3127.7,3125.9,0.15885569]
[1767384227786,1.01810812,3127.6,3126.0,2.82385569]
[1767384227979,1.01810812,3127.5,3126.1,0.15885569]
[1767384228284,1.01810812,3127.4,3126.1,0.15885569]
[1767384228472,1.01810812,3127.3,3126.1,0.15885569]
[1767384228678,1e-08,3127.7,3126.3,0.15885569]
[1767384228875,1.01137282,3127.6,3126.3,0.15885569]
[1767384229086,1e-08,3127.7,3126.5,0.15885569]
[1767384229382,1.72708603,3128.7,3126.8,0.15885569]
[1767384229584,1.01164072,3128.6,3127.5,0.15885569]
[1767384229774,1.01164072,3128.5,3127.5,0.15885569]
[1767384229974,1.01164072,3128.4,3127.5,0.15885569]
[1767384230174,1.01158615,3128.3,3127.5,0.15885569]
[1767384230377,0.00244799,3128.3,3127.5,0.16282361]
[1767384230878,0.00244799,3128.3,3127.5,0.00396792]
[1767384231086,1.01136698,3128.2,3127.5,0.00396792]
[1767384231383,1.01136698,3128.1,3127.5,0.00396792]
[1767384231692,1.01136698,3128.0,3127.5,0.00396792]
[1767384231983,0.00244799,3128.3,3127.5,0.00396792]
[1767384232180,1.00468115,3128.2,3127.5,0.00396792]
[1767384232390,1.00468115,3128.1,3127.5,0.00396792]
[1767384232680,1.00468115,3128.0,3127.5,0.00396792]
[1767384232881,1.00468115,3127.9,3127.0,0.15885569]
[1767384233080,1.00468115,3127.8,3126.7,4.462]
[1767384233276,0.00244799,3128.3,3126.7,4.462]
[1767384233472,0.00244799,3128.3,3126.5,3.51786569]
[1767384233473,1.00479018,3128.2,3126.5,0.15885569]
[1767384233679,1.00479018,3128.1,3126.5,0.15885569]
[1767384233879,1.00479018,3128.1,3126.5,0.16133494]
[1767384234082,0.00479946,3127.6,3127.0,0.00479946]
[1767384234687,0.00479946,3127.6,3126.5,0.16133494]
[1767384235688,0.00479946,3127.6,3126.7,0.00479946]
[1767384235877,1.00513255,3127.5,3126.7,0.00479946]
[1767384236079,0.00479946,3127.6,3126.7,0.00479946]
[1767384236387,1.00506993,3127.5,3126.7,0.00479946]
[1767384236586,0.00479946,3127.6,3126.7,0.00479946]
[1767384236776,1.00506939,3127.5,3126.7,0.00479946]
[1767384236978,0.00479946,3127.6,3126.7,0.00479946]
[1767384237180,1.00506938,3127.5,3126.7,0.00479946]
[1767384237386,0.00479946,3127.6,3126.7,0.00479946]
[1767384237790,1.00501026,3127.5,3126.7,0.00479946]
[1767384237984,0.00479946,3127.6,3126.7,0.00479946]
[1767384238285,1.00501567,3127.5,3126.7,0.00479946]
[1767384238587,1.00501567,3127.4,3126.5,0.00247925]
[1767384238788,0.00479946,3127.6,3126.5,0.00247925]
[1767384238989,1.00508823,3127.5,3126.5,0.00247925]
[1767384239189,1.00508823,3127.4,3126.5,0.00247925]
[1767384239387,0.00479946,3127.6,3126.6,0.00479946]
[1767384239688,1.00513952,3127.5,3126.6,0.00479946]
[1767384239898,1.00513952,3127.4,3126.6,0.00479946]
[1767384240079,1.00513952,3127.3,3126.6,0.00479946]
[1767384240281,1.00513952,3127.2,3125.5,0.1659686]
[1767384240484,1.00513952,3127.1,3125.6,4.62005]
[1767384240683,1.00513952,3127.0,3125.6,4.7860186]
[1767384240882,1.89183549,3127.6,3125.6,4.7860186]
[1767384241088,0.15912921,3127.4,3125.6,4.7860186]
[1767384241391,0.15912921,3127.4,3126.2,0.00479946]
[1767384241392,1.16514934,3127.3,3126.2,0.00479946]
[1767384241585,1.00517934,3127.2,3126.2,0.00479946]
[1767384241991,1.16430855,3127.2,3125.6,0.00355664]
[1767384242287,0.15912921,3127.0,3125.6,0.00355664]
[1767384242481,0.15999,3126.8,3125.6,0.00355664]
[1767384242676,1.00517934,3126.7,3125.6,0.00355664]
[1767384243083,1.00517934,3126.7,3125.8,0.00479946]
[1767384244089,0.15998,3127.1,3125.8,0.00479946]
[1767384244289,1.00516085,3127.0,3125.8,0.00479946]
[1767384244492,1.00516085,3126.9,3125.8,0.00479946]
[1767384244692,1.00516085,3126.8,3125.8,0.00479946]
[1767384244889,1.00516085,3126.7,3125.8,0.00479946]
[1767384245086,0.15998,3127.1,3125.8,0.00479946]
[1767384245290,1.00518105,3127.0,3125.8,0.00479946]
[1767384245490,1.00518105,3126.9,3125.8,0.00479946]
[1767384245687,1.00518105,3126.8,3125.8,0.00479946]
[1767384245887,0.15998,3127.1,3125.8,0.00479946]
[1767384246197,1.00518103,3127.0,3125.8,0.00479946]
[1767384246392,1.00518103,3126.9,3125.8,0.00479946]
[1767384246696,1.16517103,3126.8,3125.8,0.00479946]
[1767384246901,1.16518103,3126.7,3125.8,0.00479946]
[1767384247106,0.16,3126.7,3125.8,0.00479946]
[1767384247487,0.15997,3127.3,3125.8,0.00479946]
[1767384247696,1.00517301,3127.2,3125.8,0.00479946]
[1767384247995,1.00517301,3127.1,3125.8,0.00479946]
[1767384248295,1.00517301,3127.0,3125.8,0.00479946]
[1767384248500,0.15997,3127.3,3125.8,0.00479946]
[1767384248797,1.00515841,3127.2,3125.8,0.00479946]
[1767384248995,1.00515841,3127.1,3125.8,0.00479946]
[1767384249186,0.15999,3126.9,3125.8,0.00479946]
[1767384249586,0.15912921,3127.2,3125.8,0.00479946]
[1767384249787,0.15912921,3127.0,3125.8,0.00479946]
[1767384250089,0.16,3126.7,3125.8,0.00479946]
[1767384250597,0.16,3126.6,3124.9,0.1659686]
[1767384251495,0.16,3126.6,3125.4,0.00319966]
[1767384255806,0.16001,3126.5,3125.4,0.00319966]
[1767384256991,0.16001,3126.5,3124.9,0.16997106]
[1767384256992,0.15912921,3126.4,3124.9,0.00400246]
[1767384257196,0.16005,3125.7,3124.0,3.3659686]
[1767384258002,0.00479946,3125.2,3124.0,3.3659686]
[1767384258200,0.00734582,3125.2,3124.0,3.36855439]
[1767384259203,0.00734582,3125.2,3124.0,0.16855439]
[1767384259801,0.00734582,3125.2,3124.0,0.00258579]
[1767384260492,0.00734582,3125.2,3124.0,0.16855439]
[1767384267203,0.00734582,3125.2,3124.0,0.00258579]
[1767384267703,0.16741582,3125.2,3124.0,0.00258579]
[1767384268003,0.16008,3125.1,3124.0,0.00258579]
[1767384271613,0.16009,3125.0,3124.0,0.00258579]
[1767384271807,0.16009,3124.9,3123.6,4.458]
[1767384272003,0.16009,3124.9,3123.3,3.201]
[1767384272004,0.1601,3124.8,3123.2,0.15800851]
[1767384272308,0.1601,3124.7,3123.2,0.15800851]
[1767384272908,0.1601,3124.7,3123.2,0.16209282]
[1767384274307,0.1601,3124.6,3123.2,0.16209282]
[1767384276807,0.16013,3124.2,3123.2,0.00408431]
[1767384277117,0.16013,3124.1,3122.7,0.15800851]
[1767384277614,0.16013,3124.0,3122.4,4.457]
[1767384277907,0.00479946,3123.5,3122.4,4.45927992]